bitfinex/quotes_ETHUSD_20220226
["timestamp","ask_amount","ask_price","bid_price","bid_amount"]
[1645870195408,16.13845115,2755.1,2755.0,0.17393155]
[1645870195610,26.03889011,2755.1,2755.0,0.17393155]
[1645870195808,26.03889011,2755.1,2754.6,0.00303576]
[1645870195809,11.4328,2755.0,2754.6,0.00303576]
[1645870196008,1.27121,2754.8,2754.5,0.91672195]
[1645870196209,0.8858,2754.7,2754.5,0.91672195]
[1645870197415,1.79421,2754.7,2754.5,0.92110068]
[1645870197639,3.0025888,2754.7,2754.5,0.92110068]
[1645870197938,0.3,2754.6,2754.5,0.92110068]
[1645870198137,1.02890815,2754.6,2754.5,0.92110068]
[1645870198338,1.02890815,2754.6,2754.5,0.91672195]
[1645870198947,4.89170815,2754.6,2754.5,0.91672195]
[1645870199249,5.89170815,2754.6,2754.5,0.91672195]
[1645870199448,17.4328,2754.5,2754.2,0.00303576]
[1645870199648,19.78319,2754.3,2753.7,0.00303576]
[1645870199848,16.36449,2754.2,2753.7,0.00303576]
[1645870200049,11.4328,2754.1,2753.7,0.00303576]
[1645870200245,22.9888,2754.1,2753.7,0.00303576]
[1645870200646,23.12969575,2754.1,2753.7,0.00303576]
[1645870201048,23.12969575,2754.1,2753.9,0.00437906]
[1645870201701,19.62969575,2754.1,2753.9,0.00437906]
[1645870201901,19.62969575,2754.1,2753.7,0.00303576]
[1645870202103,19.62969575,2754.1,2753.9,0.00437906]
[1645870203004,19.7860889,2754.1,2754.0,8.49852494]
[1645870203205,8.19689575,2754.1,2754.0,8.49852494]
[1645870203406,0.523,2754.1,2754.0,8.49852494]
[1645870204103,0.523,2754.1,2754.0,9.87436807]
[1645870204305,0.523,2754.1,2754.0,8.49852494]
[1645870205940,0.523,2754.1,2754.0,9.5483807]
[1645870206144,1.43127,2754.6,2754.0,9.5483807]
[1645870206939,1.43127,2754.6,2754.2,0.00437894]
[1645870207340,1.43127,2754.6,2754.0,9.53319774]
[1645870208341,1.43127,2754.6,2754.0,9.41363524]
[1645870209405,1.43127,2754.6,2754.1,0.00156371]
[1645870210204,1.43127,2754.6,2754.0,9.41363524]
[1645870210604,1.43127,2754.6,2754.1,0.00156371]
[1645870211206,3.24803,2754.6,2754.1,0.00156371]
[1645870211414,3.24803,2754.6,2754.0,9.41363524]
[1645870212007,3.39810116,2754.6,2754.1,0.00470868]
[1645870212206,4.69810116,2754.6,2754.1,0.00470868]
[1645870212407,3.39810116,2754.6,2754.1,0.00470868]
[1645870212652,0.9084494,2754.5,2754.0,9.41363524]
[1645870212843,1.06046954,2754.5,2754.0,8.36377948]
[1645870213048,1.06046954,2754.5,2754.1,0.00470868]
[1645870213645,1.88346954,2754.5,2754.1,0.00470868]
[1645870213845,1.88346954,2754.5,2754.0,8.36377948]
[1645870214050,0.15639315,2754.4,2754.0,8.36377948]
[1645870214251,1.43151,2754.3,2754.1,0.00470863]
[1645870214450,0.05512,2754.2,2754.1,0.00470863]
[1645870214650,0.57812,2754.2,2754.1,0.00470863]
[1645870215051,0.57812,2754.2,2754.0,8.36377948]
[1645870215052,1.73155,2754.2,2754.0,8.36377948]
[1645870215251,1.93118894,2754.2,2754.0,8.36534416]
[1645870216257,1.93118894,2754.2,2754.0,8.36377948]
[1645870216493,1.93118894,2754.2,2754.0,8.36849227]
[1645870217595,1.93118894,2754.2,2754.0,8.36377948]
[1645870217793,1.93118894,2754.2,2754.0,8.36849227]
[1645870217993,1.40818894,2754.2,2754.0,8.36849227]
[1645870218394,0.523,2754.1,2754.0,8.36849227]
[1645870218595,0.823,2754.1,2754.0,8.36377948]
[1645870218798,0.98059638,2754.1,2754.0,8.36377948]
[1645870218999,0.98059638,2754.1,2754.0,8.36849227]
[1645870219801,0.98059638,2754.1,2754.0,8.36377948]
[1645870220004,0.823,2754.1,2754.0,8.36377948]
[1645870220453,0.523,2754.1,2754.0,8.36377948]
[1645870221649,1.90851,2754.3,2754.1,6.0]
[1645870221650,0.90851,2754.3,2754.1,6.0]
[1645870221847,0.1,2755.0,2754.2,3.8628]
[1645870222049,0.1,2755.0,2754.4,0.3628]
[1645870222249,0.3489888,2755.5,2754.3,5.0]
[1645870222250,0.18974956,2755.5,2754.8,0.3628]
[1645870222450,1.37146429,2756.1,2755.1,0.3628]
[1645870222648,1.3903011,2756.4,2755.3,0.3628]
[1645870222848,1.3903011,2756.4,2756.2,1.31970853]
[1645870222849,0.01883681,2756.4,2756.2,1.31970853]
[1645870223048,0.01883681,2756.4,2756.2,1.11433784]
[1645870223451,1.43064,2756.5,2756.2,1.11433784]
[1645870223904,1.8200204,2756.8,2756.2,1.11433784]
[1645870224110,1.8200204,2756.8,2756.2,1.47713784]
[1645870224111,0.0047104,2756.8,2756.2,1.47713784]
[1645870224711,0.15639315,2757.2,2756.2,1.47713784]
[1645870224712,1.52785744,2757.2,2756.2,1.47713784]
[1645870224912,1.52785744,2757.2,2756.9,1.42129926]
[1645870225111,0.018841,2757.1,2756.9,1.42129926]
[1645870225912,0.90735,2757.5,2756.9,1.42129926]
[1645870225913,2.27881429,2757.5,2756.9,1.42129926]
[1645870226114,2.80181429,2757.5,2756.9,1.42129926]
[1645870226311,0.00471067,2757.1,2756.9,1.42129926]
[1645870227109,1.20735,2757.5,2756.9,1.42129926]
[1645870227318,0.00471067,2757.1,2756.9,1.42129926]
[1645870228156,0.00471067,2757.1,2756.5,3.6174]
[1645870228358,1.81503,2757.3,2756.4,1.7237]
[1645870228557,0.00471067,2757.1,2756.4,1.7237]
[1645870229159,0.00471067,2757.1,2756.8,1.35360024]
[1645870229360,0.00471067,2757.1,2756.4,1.5788]
[1645870229558,0.90747,2757.2,2756.4,1.5788]
[1645870229758,0.0047107,2757.1,2756.4,1.5788]
[1645870230562,0.01883998,2757.5,2756.9,5.0]
[1645870230762,7.45,2757.7,2757.0,0.3628]
[1645870230963,7.45,2757.7,2756.9,0.3628]
[1645870231161,0.90732,2757.6,2756.4,2.5863]
[1645870231406,0.90732,2757.6,2757.2,1.0472356]
[1645870231602,0.90732,2757.6,2756.4,2.5863]
[1645870232006,0.90732,2757.6,2756.5,0.3628]
[1645870232208,0.00472521,2757.2,2756.5,0.3628]
[1645870232411,0.00472521,2757.2,2756.6,7.6175]
[1645870232908,0.00472521,2757.2,2757.1,1.44495177]
[1645870233109,1.73032,2757.6,2757.1,1.44495177]
[1645870233308,8.50618,2757.7,2757.1,1.44495177]
[1645870233509,8.50618,2757.7,2757.1,1.80775177]
[1645870233510,0.00472509,2757.2,2757.1,1.80775177]
[1645870233706,0.973724,2757.7,2757.2,2.0]
[1645870233914,0.973724,2757.7,2757.2,2.3628]
[1645870234109,0.05788,2758.1,2757.2,2.3628]
[1645870234310,0.05788,2758.1,2757.3,2.6425]
[1645870234910,0.05788,2758.1,2757.4,0.3628]
[1645870237055,0.00472696,2757.9,2757.4,0.3628]
[1645870237255,0.00472696,2757.9,2757.3,2.6472279]
[1645870237656,0.00472696,2757.9,2757.4,1.74758975]
[1645870237858,0.00427791,2758.4,2757.4,1.38478975]
[1645870238257,0.00472705,2757.7,2757.4,1.38478975]
[1645870239115,0.00427791,2758.0,2757.4,1.38478975]
[1645870239313,0.1223532,2758.1,2758.0,1.36254913]
[1645870240317,0.01890392,2758.3,2758.0,1.36254913]
[1645870240517,0.01890392,2758.3,2758.0,5.22534913]
[1645870240717,0.5,2758.6,2758.0,5.22534913]
[1645870241618,0.05533791,2759.3,2758.0,5.22534913]
[1645870241817,0.00433896,2758.4,2758.3,0.3628]
[1645870242016,0.00433896,2758.4,2758.3,3.8628]
[1645870242315,0.00433896,2758.4,2758.3,7.6911]
[1645870242746,0.05533791,2759.7,2758.3,14.9419]
[1645870242951,0.00433893,2758.5,2758.3,14.9419]
[1645870243152,0.00433893,2758.5,2758.3,11.4419]
[1645870243551,0.00433893,2758.5,2758.3,11.0791]
[1645870243951,0.3628,2759.2,2758.3,11.0791]
[1645870244155,0.0043389,2758.5,2758.3,11.0791]
[1645870244553,0.0043389,2758.5,2758.3,9.8734]
[1645870244753,0.823,2758.4,2758.3,7.2508]
[1645870244952,1.00216596,2758.4,2758.3,7.2508]
[1645870245652,1.90930596,2758.4,2758.3,7.2508]
[1645870248209,1.73014,2758.4,2758.3,7.2508]
[1645870248409,1.88198672,2758.4,2758.3,7.2508]
[1645870249212,1.88198672,2758.4,2758.3,7.26643552]
[1645870249408,1.83198672,2758.4,2758.3,7.26643552]
[1645870249814,0.67484672,2758.4,2758.3,7.26643552]
[1645870250012,0.523,2758.4,2758.3,7.26643552]
[1645870253764,0.52727791,2758.8,2758.3,7.26643552]
[1645870254006,0.00447185,2758.5,2758.3,7.26643552]
[1645870254408,0.00447185,2758.5,2758.4,1.4360311]
[1645870254810,0.3,2759.1,2758.4,1.4360311]
[1645870254811,7.45,2759.5,2758.5,7.0]
[1645870255106,0.5,2760.4,2758.8,0.3628]
[1645870255306,0.5,2760.4,2759.1,0.37504176]
[1645870255506,0.5,2760.4,2759.3,0.3628]
[1645870255709,0.71737257,2761.0,2759.1,3.4458]
[1645870255710,0.90641,2760.8,2759.1,3.4458]
[1645870255907,0.90641,2760.8,2758.9,2.4787]
[1645870255908,0.3628,2760.4,2758.5,0.25]
[1645870256109,11.4328,2760.0,2758.5,0.25]
[1645870256306,12.58694846,2760.3,2758.5,0.25]
[1645870256307,11.4328,2759.7,2758.5,0.25]
[1645870256511,1.0,2760.5,2758.8,7.0]
[1645870256707,4.01930807,2760.7,2759.8,5.0]
[1645870256708,0.01285044,2760.7,2759.8,5.0]
[1645870256915,0.01285044,2760.7,2760.1,5.0]
[1645870257107,0.01285044,2760.7,2760.2,3.5]
[1645870257309,0.90617,2761.7,2760.0,3.3935]
[1645870257310,1.42917,2761.7,2760.0,3.3935]
[1645870257508,2.33529,2761.7,2760.1,3.51245034]
[1645870257772,2.33529,2761.7,2760.0,3.3935]
[1645870257970,0.90623,2761.6,2760.0,3.3935]
[1645870258171,11.07,2761.4,2760.0,3.3935]
[1645870258372,0.90634,2761.1,2760.1,3.5]
[1645870258575,0.90634,2761.1,2760.0,3.3935]
[1645870258773,0.90634,2761.1,2759.4,2.9682]
[1645870258774,11.07,2760.8,2759.3,1.25]
[1645870258975,0.90662,2760.5,2759.3,0.25]
[1645870259174,0.90662,2760.5,2759.1,1.9137]
[1645870259175,0.90675,2760.1,2759.1,1.9137]
[1645870259379,0.4579675,2759.9,2759.1,1.9137]
[1645870259580,1.42971,2759.8,2758.8,3.54518127]
[1645870259776,1.42971,2759.8,2759.5,0.01850934]
[1645870259974,1.72971,2759.8,2759.5,0.01850934]
[1645870260175,0.00471336,2759.7,2759.5,0.01850934]
[1645870260377,0.52771336,2759.7,2759.5,0.01850934]
[1645870260778,0.00471336,2759.7,2759.5,0.01850934]
[1645870260977,0.3,2759.9,2759.5,0.01850934]
[1645870261178,0.00471336,2759.7,2759.5,0.01850934]
[1645870262017,0.9067,2759.7,2759.5,0.01850934]
[1645870262219,0.523,2759.6,2759.5,0.01850934]
[1645870262416,9.023,2759.6,2759.5,0.01611484]
[1645870262617,9.50638547,2759.6,2759.5,0.01611484]
[1645870262821,3.04905329,2759.6,2759.5,0.01611484]
[1645870263017,1.823,2759.6,2759.5,0.01611484]
[1645870263219,1.01478371,2759.6,2759.5,0.01611484]
[1645870263821,4.51478371,2759.6,2759.5,1.484e-05]
[1645870264025,14.31438219,2759.6,2759.5,0.00543845]
[1645870264221,11.81438219,2759.6,2759.5,0.00543845]
[1645870264620,9.63538219,2759.6,2759.5,0.00543845]
[1645870264824,9.63538219,2759.6,2759.3,0.02318793]
[1645870264825,13.249,2759.4,2759.3,0.00012638]
[1645870265023,13.249,2759.4,2757.8,0.25]
[1645870265024,0.0008,2759.1,2757.8,0.25]
[1645870265257,6.533,2758.1,2757.8,34.5069101]
[1645870265463,0.523,2758.0,2757.8,34.5069101]
[1645870266060,0.523,2758.0,2757.8,34.50827822]
[1645870266260,0.00425621,2758.3,2757.8,34.50827822]
[1645870266261,1.20717,2758.2,2757.8,34.50827822]
[1645870266660,0.90717,2758.2,2757.8,34.50827822]
[1645870266862,0.90717,2758.2,2757.8,34.5069101]
[1645870267259,0.90717,2758.2,2757.9,0.00136809]
[1645870267661,1.43017,2758.2,2757.9,0.00136809]
[1645870268061,1.43017,2758.2,2757.8,34.5069101]
[1645870268262,12.88465,2758.0,2757.8,29.0614401]
[1645870268464,7.056,2757.9,2757.8,29.0614401]
[1645870268662,7.356,2757.9,2757.8,29.0614401]
[1645870268912,9.63312335,2757.9,2757.8,23.32381558]
[1645870269118,10.94511278,2757.9,2757.8,23.32381558]
[1645870269920,9.63312335,2757.9,2757.8,23.32381558]
[1645870271327,9.63312335,2757.9,2756.9,0.25]
[1645870271328,17.03684257,2757.8,2757.5,28.77149454]
[1645870271531,26.03506181,2757.6,2757.5,23.91872507]
[1645870271722,26.85806181,2757.6,2757.5,23.91872507]
[1645870271922,28.27042598,2757.6,2757.5,13.02364507]
[1645870272121,28.27042598,2757.6,2757.5,12.88834507]
[1645870272122,28.38855269,2757.6,2757.5,12.88834507]
[1645870272322,28.75952839,2757.6,2757.5,1.99365507]
[1645870272523,14.7008,2757.4,2755.9,0.145]
[1645870272765,1.089,2756.7,2755.9,0.145]
[1645870272962,1.089,2756.5,2755.9,0.145]
[1645870273163,0.3,2756.7,2755.9,0.145]
[1645870273164,1.612,2756.4,2755.9,0.145]
[1645870273361,1.089,2756.2,2755.9,0.145]
[1645870273561,1.089,2756.2,2755.9,1.42728887]
[1645870273762,1.089,2756.2,2755.2,10.34593671]
[1645870273763,6.0,2756.1,2755.2,10.34593671]
[1645870273967,6.0,2756.1,2754.8,0.25]
[1645870273968,6.71379683,2756.0,2754.8,0.25]
[1645870274169,11.54598538,2755.3,2754.2,0.00303576]
[1645870274368,6.533,2754.4,2754.3,7.2602]
[1645870274571,4.5,2754.4,2754.3,5.57423676]
[1645870274768,4.5,2754.4,2754.0,8.36377948]
[1645870274769,2.05368,2754.4,2754.0,5.86724462]
[1645870274967,2.05368,2754.4,2753.6,0.00303576]
[1645870274968,6.533,2754.1,2753.6,0.00303576]
[1645870275169,6.533,2754.1,2752.0,31.80178157]
[1645870275170,7.056,2754.0,2753.0,0.00303576]
[1645870275470,7.056,2754.0,2752.9,3.5]
[1645870275471,0.523,2754.0,2752.9,3.5]
[1645870275667,1.0,2754.5,2753.2,5.0]
[1645870275868,1.0,2754.1,2753.7,0.00476807]
[1645870276067,1.15355473,2754.5,2753.7,0.00476807]
[1645870276270,1.15355473,2754.5,2753.8,0.1452]
[1645870276271,0.15355473,2754.5,2753.8,0.1452]
[1645870276517,1.0,2754.8,2753.8,0.14823576]
[1645870276718,0.3,2755.0,2753.8,0.14823576]
[1645870276918,0.3,2755.0,2754.0,0.00476789]
[1645870277121,0.90829,2754.8,2754.0,0.00476789]
[1645870277318,0.523,2754.7,2754.0,0.00476789]
[1645870278023,0.523,2754.7,2753.5,0.00303576]
[1645870278220,0.90839,2754.5,2754.2,0.00476777]
[1645870278421,0.523,2754.4,2754.2,0.00476777]
[1645870278822,0.823,2754.4,2754.2,0.00476777]
[1645870279022,0.3,2754.4,2753.5,0.00303576]
[1645870279225,0.1577904,2754.4,2753.5,0.00303576]
[1645870279423,1.39801988,2754.5,2754.2,0.00442855]
[1645870280278,1.39801988,2754.5,2753.5,0.00303576]
[1645870280466,1.39801988,2754.5,2754.2,0.00165529]
[1645870280671,1.39801988,2754.5,2753.4,3.5]
[1645870280870,1.39801988,2754.5,2753.3,3.83268721]
[1645870281069,1.54321988,2754.5,2753.3,3.68748721]
[1645870281269,0.63482988,2754.5,2753.3,3.68748721]
[1645870281471,0.90844,2754.2,2753.3,3.68748721]
[1645870281670,1.20844,2754.2,2753.3,3.68748721]
[1645870281873,1.3762788,2754.2,2753.3,3.68748721]
[1645870282476,1.3762788,2754.2,2753.7,0.5]
[1645870282676,1.3762788,2754.2,2753.3,3.68748721]
[1645870282978,1.3762788,2754.2,2753.6,0.00165061]
[1645870283776,1.3762788,2754.2,2753.3,3.68748721]
[1645870284208,1.3762788,2754.2,2753.7,0.00477202]
[1645870285210,1.3762788,2754.2,2753.3,3.68748721]
[1645870285411,1.3762788,2754.2,2753.7,0.00477207]
[1645870286414,1.3762788,2754.2,2753.3,3.68748721]
[1645870286613,1.3762788,2754.2,2753.7,0.00477207]
[1645870287653,1.3762788,2754.2,2753.4,0.00303365]
[1645870287855,1.3762788,2754.2,2753.7,0.00461102]
[1645870288055,1.10545035,2754.5,2753.7,0.00461102]
[1645870288255,0.90833,2754.5,2753.7,0.00461102]
[1645870288457,0.5801,2754.9,2753.7,0.00461102]
[1645870288858,0.5801,2754.9,2754.0,1.22205371]
[1645870289261,0.90822,2754.8,2754.1,3.5]
[1645870289461,0.1439,2755.2,2754.1,3.8628]
[1645870289660,0.20983923,2755.3,2754.1,3.8628]
[1645870289861,0.1436,2755.5,2754.8,1.41903796]
[1645870290063,0.1436,2755.5,2754.2,2.8879]
[1645870290360,1.270902,2755.6,2754.2,2.8879]
[1645870290563,1.43875925,2755.6,2754.2,2.8879]
[1645870290760,1.43875925,2755.6,2754.3,3.5]
[1645870290967,1.81613,2755.5,2754.7,1.34792271]
[1645870292409,0.90806,2755.3,2754.7,1.34792271]
[1645870292809,1.20806,2755.3,2754.7,1.34792271]
[1645870293408,1.20806,2755.3,2754.3,3.5]
[1645870293409,0.90814,2755.0,2754.3,3.5]
[1645870293614,0.90814,2755.0,2754.2,2.8879]
[1645870293810,0.90814,2755.0,2754.3,3.8628]
[1645870294009,0.90814,2755.0,2754.3,3.5]
[1645870294510,0.90814,2755.0,2754.0,3.5]
[1645870294710,0.90814,2755.0,2754.1,0.3628]
[1645870294911,0.90814,2755.0,2754.3,0.3628]
[1645870295164,0.89906493,2755.0,2754.4,3.5]
[1645870295364,0.89906493,2755.0,2754.3,0.3628]
[1645870295563,0.89906493,2755.0,2754.0,3.5]
[1645870295964,0.89906493,2755.0,2754.0,3.8628]
[1645870296569,0.89906493,2755.0,2754.3,1.25311307]
[1645870296969,0.89906493,2755.0,2754.0,3.5]
[1645870297571,0.89906493,2755.0,2754.3,0.5]
[1645870297970,0.89906493,2755.0,2753.9,1.15863365]
[1645870297971,1.19906493,2755.0,2753.9,1.15863365]
[1645870298171,1.27119,2754.7,2753.9,1.15863365]
[1645870298570,1.89408494,2754.7,2753.9,1.15863365]
[1645870298775,1.53128494,2754.7,2753.9,1.15863365]
[1645870299011,1.09490417,2754.6,2753.9,1.15863365]
[1645870299213,0.90834,2754.4,2753.9,1.15863365]
[1645870299412,1.96198,2754.5,2754.4,0.72865763]
[1645870299615,2.96198,2754.5,2754.4,0.72865763]
[1645870299818,1.96198,2754.5,2754.4,0.72865763]
[1645870300013,2.81678,2754.5,2754.4,0.72865763]
[1645870300216,1.81678,2754.5,2754.4,0.72865763]
[1645870300413,1.81678,2754.5,2754.4,0.23760095]
[1645870302861,1.72602054,2754.5,2754.4,0.23760095]
[1645870307723,2.20835,2754.6,2754.4,0.23760095]
[1645870307921,1.0,2754.6,2754.4,0.23760095]
[1645870308121,0.90818,2754.8,2754.4,0.23760095]
[1645870309625,0.90498,2754.8,2754.4,1.45915399]
[1645870310259,0.90498,2754.8,2754.4,0.23760095]
[1645870313914,1.20498,2754.8,2754.4,0.23760095]
[1645870314310,1.36885311,2754.8,2754.4,0.23760095]
[1645870314514,0.1439,2754.7,2754.4,0.23760095]
[1645870315013,1.36885311,2754.8,2754.4,0.23760095]
[1645870315014,1.20498,2754.8,2754.4,0.23760095]
[1645870317663,0.90498,2754.8,2754.4,0.23760095]
[1645870318159,1.20498,2754.8,2754.4,0.23760095]
[1645870318663,0.90498,2754.8,2754.4,0.23760095]
[1645870319266,0.90498,2754.8,2754.5,1.06604495]
[1645870319668,1.20498,2754.8,2754.4,0.23760095]
[1645870320066,0.90498,2754.8,2754.4,0.23760095]
[1645870320965,0.80639,2754.8,2754.4,1.61962372]
[1645870322816,0.80639,2754.8,2754.4,0.23760095]
[1645870324021,1.25159,2754.8,2754.4,0.23760095]
[1645870324220,1.46298267,2754.8,2754.4,0.23760095]
[1645870324422,0.1452,2754.7,2754.4,0.23760095]
[1645870324621,1.0536188,2754.7,2754.4,0.23760095]
[1645870324824,0.3628,2754.4,2753.6,1.3778]
[1645870325021,0.1452,2754.3,2753.7,1.53498737]
[1645870325259,0.1452,2754.3,2753.7,1.53918211]
[1645870325559,0.1452,2754.3,2753.7,0.00419474]
[1645870325758,0.90857,2754.2,2753.7,0.00419474]
[1645870326057,0.1452,2754.1,2753.5,1.23093365]
[1645870326261,0.1452,2754.1,2753.7,0.00419417]
[1645870326962,4.33408097,2754.2,2753.7,0.00419417]
[1645870327164,4.33408097,2754.2,2753.5,1.23093365]
[1645870327366,1.81714,2754.0,2753.6,1.53500585]
[1645870327563,2.11714,2754.0,2753.7,0.00419407]
[1645870327765,0.90855,2753.9,2753.7,0.00419407]
[1645870328364,0.90855,2753.9,2753.5,0.00303365]
[1645870328566,0.90855,2753.9,2753.4,1.53498456]
[1645870328768,0.90855,2753.9,2753.7,0.00419397]
[1645870329611,0.90855,2753.9,2753.4,0.00303365]
[1645870329916,0.90855,2753.9,2753.7,0.004194]
[1645870329917,3.936,2753.8,2753.7,0.004194]
[1645870330114,0.736,2753.8,2753.7,0.004194]
[1645870330313,1.0,2753.8,2753.7,0.004194]
[1645870330514,1.0,2753.9,2753.7,0.004194]
[1645870330713,0.80378108,2754.0,2753.4,0.00303365]
[1645870330714,0.50378108,2754.0,2753.4,0.00303365]
[1645870330911,0.50378108,2754.0,2753.4,1.53496883]
[1645870331114,0.20378108,2754.0,2753.6,0.00419683]
[1645870331314,0.3,2753.9,2753.6,0.00419683]
[1645870331714,0.51284332,2754.1,2753.6,0.00419683]
[1645870331913,0.90851,2753.9,2753.6,0.00419683]
[1645870332214,1.20851,2753.9,2753.4,0.00303365]
[1645870332416,1.20851,2753.9,2753.6,0.00419683]
[1645870333279,1.20851,2753.9,2753.4,0.00303365]
[1645870333481,1.20851,2753.9,2753.6,0.00419674]
[1645870334482,1.20851,2753.9,2753.4,0.00303365]
[1645870334685,1.20851,2753.9,2753.6,0.0041938]
[1645870335485,1.35910211,2753.9,2753.6,0.0041938]
[1645870335686,1.35910211,2753.9,2753.4,0.00303365]
[1645870335885,1.72190211,2753.9,2753.4,1.53502994]
[1645870336087,2.63053291,2753.9,2753.4,1.53502994]
[1645870336289,2.72190211,2753.9,2753.4,1.53502994]
[1645870336912,2.72190211,2753.9,2753.3,3.7215]
[1645870337113,1.72190211,2753.9,2753.3,3.7215]
[1645870337315,2.18005,2753.8,2753.3,3.7215]
[1645870337718,2.48005,2753.8,2753.2,0.00303365]
[1645870337916,0.90867,2753.6,2753.1,1.53512961]
[1645870338316,1.20867,2753.6,2753.4,0.00445524]
[1645870338516,1.36952857,2753.6,2753.4,0.00445524]
[1645870339214,1.36952857,2753.6,2753.1,0.00303365]
[1645870339415,1.36952857,2753.6,2753.0,1.1758]
[1645870339416,1.36952857,2753.6,2753.4,0.00445527]
[1645870340463,1.36952857,2753.6,2753.1,0.00303365]
[1645870340464,1.73232857,2753.6,2753.1,0.00303365]
[1645870340665,1.73232857,2753.6,2753.0,1.1758]
[1645870340963,1.81745,2753.5,2753.0,1.1758]
[1645870341367,1.81745,2753.5,2752.9,0.00303365]
[1645870341368,0.90887,2753.3,2752.9,0.00303365]
[1645870341565,0.9089294,2753.2,2752.8,1.0]
[1645870341765,1.09246738,2753.2,2752.8,1.0]
[1645870341964,1.8178,2753.1,2752.8,1.0]
[1645870343168,1.8178,2753.1,2752.8,0.00444373]
[1645870344127,1.8178,2753.1,2752.5,3.80943365]
[1645870344326,1.8178,2753.1,2752.6,1.53531256]
[1645870344526,1.8178,2753.1,2752.8,0.00457668]
[1645870344726,2.1178,2753.1,2752.8,0.00457668]
[1645870345130,1.8178,2753.0,2752.5,3.8064]
[1645870345335,1.8178,2753.0,2752.6,1.53532624]
[1645870345528,1.8178,2753.0,2752.8,0.00457668]
[1645870346430,1.8178,2753.0,2752.5,3.8064]
[1645870346633,1.8178,2753.0,2752.8,0.00457671]
[1645870347668,1.8178,2753.0,2752.5,3.8064]
[1645870347872,1.8178,2753.0,2752.8,0.00443662]
[1645870348871,1.8178,2753.0,2752.5,5.20873511]
[1645870348872,1.90889,2753.1,2752.5,5.20873511]
[1645870349071,1.90889,2753.1,2752.8,0.00443662]
[1645870349271,0.90889,2753.1,2752.8,0.00335716]
[1645870350072,0.90889,2753.1,2752.6,1.53529979]
[1645870351413,0.90889,2753.1,2752.7,0.00444599]
[1645870351608,0.90889,2753.1,2752.8,1.53529979]
[1645870352606,0.90889,2753.1,2752.8,0.00444593]
[1645870353708,0.90889,2753.1,2752.5,5.20873511]
[1645870353709,0.90889,2753.1,2752.9,1.53530535]
[1645870353906,0.90889,2753.1,2752.8,0.00444593]
[1645870354114,0.90889,2753.1,2752.9,1.53530473]
[1645870354711,0.90889,2753.1,2752.8,0.00444593]
[1645870354912,0.90889,2753.1,2752.5,5.20873511]
[1645870355171,0.90889,2753.1,2752.9,0.00444435]
[1645870355971,0.90889,2753.1,2752.6,0.00303552]
[1645870356171,0.90889,2753.1,2752.9,0.00444435]
[1645870357173,0.90889,2753.1,2752.6,0.00303552]
[1645870357372,0.90889,2753.1,2752.6,1.53536203]
[1645870357572,0.90889,2753.1,2752.9,0.00444435]
[1645870358472,0.90889,2753.1,2752.6,0.00303552]
[1645870358673,0.90889,2753.1,2752.9,0.00444452]
[1645870359521,1.20889,2753.1,2752.9,0.00444452]
[1645870359721,1.20889,2753.1,2752.6,0.00303552]
[1645870359722,1.40968615,2753.1,2752.6,0.00303552]
[1645870359927,1.40968615,2753.1,2752.6,1.5354164]
[1645870360124,1.40968615,2753.1,2752.7,1.11056157]
[1645870360321,1.40968615,2753.1,2752.5,3.8064]
[1645870360523,1.40968615,2753.1,2752.6,1.5354203]
[1645870361121,1.10968615,2753.1,2752.6,1.5354203]
[1645870361323,0.90889,2753.1,2752.6,1.5354203]
[1645870361527,1.3,2753.3,2752.6,5.0354203]
[1645870361723,0.3,2753.3,2752.7,1.4854203]
[1645870362125,1.20864,2753.4,2752.6,0.00303552]
[1645870362324,1.20864,2753.4,2752.9,1.32412482]
[1645870363475,1.20864,2753.4,2753.0,0.00457349]
[1645870364475,1.20864,2753.4,2752.7,0.00303552]
[1645870364675,1.20864,2753.4,2753.1,0.00457346]
[1645870365775,1.20864,2753.4,2752.9,1.18123243]
[1645870365978,1.20864,2753.4,2753.1,0.00443257]
[1645870366416,0.3,2753.4,2753.1,0.00443257]
[1645870366612,0.15136885,2753.4,2753.1,0.00443257]
[1645870366811,0.3,2753.3,2752.9,1.18123243]
[1645870367014,0.16880766,2753.3,2752.9,1.18123243]
[1645870367213,0.51618521,2753.5,2753.1,0.00443257]
[1645870367412,0.9087,2753.3,2753.1,0.00443257]
[1645870367611,1.2087,2753.3,2753.1,0.00443257]
[1645870367813,1.42382384,2753.3,2753.1,0.00443257]
[1645870368012,1.42382384,2753.3,2752.7,0.00303552]
[1645870368212,1.42382384,2753.3,2752.5,3.80943552]
[1645870368411,1.42382384,2753.3,2753.1,0.0044326]
[1645870369220,1.42382384,2753.3,2752.8,0.00303552]
[1645870369419,1.42382384,2753.3,2752.7,1.24687812]
[1645870369616,1.42382384,2753.3,2753.1,0.00444032]
[1645870370470,1.78342384,2753.3,2752.6,0.00303552]
[1645870370669,1.42062384,2753.3,2753.1,0.00444032]
[1645870371668,1.78342384,2753.3,2752.7,1.08486437]
[1645870372069,1.42062384,2753.3,2753.1,0.00444032]
[1645870372873,1.78342384,2753.3,2752.7,1.08486437]
[1645870373073,1.42062384,2753.3,2753.1,0.00444158]
[1645870374146,0.51192384,2753.3,2752.7,1.08486437]
[1645870374346,0.49214078,2753.4,2753.1,0.00444158]
[1645870374544,0.3,2753.2,2753.1,0.00444158]
[1645870374744,0.49214078,2753.4,2753.1,0.00444158]
[1645870375148,2.07380652,2753.5,2753.1,0.00444158]
[1645870375350,0.49901471,2753.3,2752.7,1.08486437]
[1645870375548,0.49901471,2753.3,2753.1,0.00444155]
[1645870375848,0.3,2753.2,2753.1,0.00444155]
[1645870376049,0.3,2753.4,2753.1,0.00444155]
[1645870376248,0.20202785,2753.4,2753.1,0.00444155]
[1645870376453,0.3,2753.3,2752.7,1.08486437]
[1645870376648,0.21659409,2753.3,2752.7,1.08486437]
[1645870376847,1.39603738,2753.5,2753.1,0.00444136]
[1645870377150,1.8171994,2754.2,2753.1,0.00444136]
[1645870377151,0.1449,2753.9,2753.1,0.00444136]
[1645870377351,0.1452,2754.4,2753.1,0.00444136]
[1645870377548,0.1978978,2754.6,2753.2,0.1452]
[1645870377549,1.51666429,2754.6,2753.2,0.1452]